[Event "FIDE World School-ch O-15 2025"]
[Site "Vrnjacka Banja"]
[Date "2025.03.22"]
[Round "4.6"]
[White "Panic, Viktor"]
[Black "Talgatov, Nazar"]
[Result "0-1"]
[Annotator "TA"]
[ECO "C54"]
[WhiteElo "1945"]
[BlackElo "2083"]
[PlyCount "102"]
[EventDate "2025.03.19"]
[EventType "swiss"]
[EventCountry "SRB"]
[SourceTitle "playchess.com"]
[Source "ChessBase"]
[SourceQuality "1"]
[TimeControl "5400+30"]

{[%evp 10,101,17,11,31,7,10,8,12,18,18,13,19,18,16,21,24,12,22,-8,23,18,65,0,62,47,74,-14,-22,-87,-50,-106,-118,-143,-116,-143,-127,-135,-130,-135,-125,-133,-137,-125,-125,-228,-222,-221,-222,-218,-152,-148,-153,-297,-214,-220,-232,-206,-186,-179,-189,-189,-187,-189,-118,-117,-122,-152,-160,-216,-195,-229,-221,-292,-287,-292,-295,-281,-264,-366,-365,-374,-379,-639,-637,-645,-639,-631,-633,-631,-597,-794,-782,-29999]} 1. e4 {[%emt 0:00:14]} e5 {[%emt 0:00:38]} 2. Nf3 {[%emt 0:00:08]} Nc6 {[%emt 0:00:40]} 3. Bc4 {[%emt 0:00:08]} Nf6 {[%emt 0:00:28]} 4. d3 {[%emt 0:00:06]} Bc5 {[%emt 0:01:04]} 5. c3 {[%emt 0:00:10]} d6 {[%emt 0:02:10]} 6. O-O {[%emt 0:00:14]} a5 {[%emt 0:01:04] C54: Giuoco Piano: 4 c3 Nf6, main lines with 5 d4 and 5 d3.} 7. Re1 {[%emt 0:00:39]} O-O {[%emt 0:00:16]} 8. h3 {[%emt 0:00:08]} Ba7 {[%emt 0:04:00] The position is equal.} 9. a4 {[%emt 0:00:59]} Be6 {[%emt 0:04:23]} 10. Bb5 {[%emt 0:00:15]} Ne7 {[%emt 0:02:14]} 11. d4 {[%emt 0:01:27]} c6 {[%emt 0:01:31]} 12. Bd3 {[%emt 0:04:21]} Ng6 {[%emt 0:02:20]} 13. Nbd2 {[%emt 0:03:31]} Nh5 {[%emt 0:18:32]} 14. Nf1 {[%emt 0:02:22]} h6 {[%emt 0:03:48]} 15. Bc2 {[%emt 0:04:13]} Nhf4 {[%emt 0:09:10]} (15... Re8 $11) 16. Bxf4 {[%emt 0:03:07]} (16. Ng3 $1 $14) 16... exf4 $146 {[%emt 0:01:17]} (16... Nxf4 $11 17. dxe5 Qb6) (16... Nxf4 17. dxe5 Qb6 18. Qd2 dxe5 19. Nxe5 Ng6 20. Nd3 Rad8 21. Qe3 Qa6 22. Qg3 Bc4 {0-1 Priyanka,N (1957)-Petrosyan,M (2560) Sharjah Masters 2nd 2018 (5)}) 17. N1h2 {[%emt 0:04:42]} c5 {[%emt 0:04:26] [#]} 18. h4 {[%emt 0:09:31]} Nxh4 $11 {[%emt 0:04:54]} 19. Qd2 {[%emt 0:00:45]} (19. d5 $11 Bc8 20. e5) 19... Ng6 {[%emt 0:01:34]} 20. Qd3 {[%emt 0:06:21]} (20. d5 $15 Bc8 21. e5 Nxe5 22. Qxf4) 20... cxd4 $17 {[%emt 0:02:36]} 21. cxd4 {[%emt 0:00:20]} Re8 {[%emt 0:02:16]} 22. e5 {[%emt 0:02:07]} dxe5 {[%emt 0:05:01]} 23. Nxe5 {[%emt 0:00:44]} Qxd4 {[%emt 0:02:33]} (23... Bxd4 24. Nxg6 fxg6 25. Rad1 $16) 24. Nxg6 {[%emt 0:04:59]} Qxd3 {[%emt 0:08:50]} ({Much less strong is} 24... Qxf2+ 25. Kh1 Rad8 (25... fxg6 26. Rxe6 Rxe6 27. Bb3 $17) 26. Rxe6 fxe6 27. Ne7+ Kf8 (27... Rxe7 $2 {is the wrong capture.} 28. Qxd8+ Kf7 29. Bg6+ Kxg6 30. Qxe7 $18) (27... Kf7 28. Qh7 $15) 28. Ng6+ Kg8 29. Ne7+ Kf7 30. Qh7 $11) 25. Bxd3 {[%emt 0:00:08]} fxg6 {[%emt 0:00:14]} 26. Bb5 {[%emt 0:04:31]} Re7 {[%emt 0:02:50]} 27. Re2 {[%emt 0:00:07]} (27. Re4 $17) 27... Kf7 $19 {[%emt 0:02:04]} 28. Rae1 {[%emt 0:00:08] [#]} Bc5 $1 {[%emt 0:01:11]} 29. Nf3 {[%emt 0:02:46]} Bf5 {[%emt 0:01:55] aiming for ...Rd8.} 30. Rxe7+ {[%emt 0:01:14]} Bxe7 {[%emt 0:00:01] A strong pair of Bishops.} 31. Re5 {[%emt 0:01:21]} (31. Ne5+ $17 Kf6 32. Nd7+ Bxd7 33. Bxd7) 31... Bf6 {[%emt 0:02:06]} 32. Bc4+ {[%emt 0:00:01]} Kf8 {[%emt 0:00:08]} 33. Rb5 {[%emt 0:00:25]} Be4 {[%emt 0:01:39]} 34. Ne5 {[%emt 0:01:20]} Bxe5 {[%emt 0:03:05]} 35. Rxe5 {[%emt 0:00:01][%mdl 4096] Endgame KRB-KRB. Black is two pawns up.} Bc6 {[%emt 0:00:05]} 36. b3 {[%emt 0:00:27]} Bd7 {[%emt 0:04:02]} (36... Be8 $19 37. Kh2 g5) 37. Rc5 $17 {[%emt 0:01:07]} Be8 {[%emt 0:02:20]} 38. Rc7 {[%emt 0:00:19] [#]} Rb8 $1 {[%emt 0:00:11]} 39. f3 {[%emt 0:01:00]} (39. Kh2 $17) 39... b6 $19 {[%emt 0:00:06]} 40. Kf2 {[%emt 0:00:40]} g5 {[%emt 0:00:40]} 41. Ra7 {[%emt 0:00:43]} Rd8 {[%emt 0:00:09]} 42. Rb7 {[%emt 0:00:27]} Rd6 {[%emt 0:00:01]} 43. Ra7 {[%emt 0:01:01]} h5 {[%emt 0:02:18]} 44. Rc7 {[%emt 0:01:26]} g4 {[%emt 0:00:21]} 45. fxg4 {[%emt 0:01:19]} hxg4 {[%emt 0:00:01]} 46. Be2 $2 {[%emt 0:00:34]} (46. g3 Rd2+ 47. Kg1) 46... g3+ {[%emt 0:00:20]} 47. Ke1 {[%emt 0:00:12]} Bf7 {[%emt 0:00:56] Wards off Rc4} 48. Rc3 {[%emt 0:00:32]} Ke7 {[%emt 0:00:16]} 49. Bb5 {[%emt 0:00:21]} Bh5 {[%emt 0:00:30][%csl Gh5][%cal Rd6d1]} 50. Rc7+ {[%emt 0:00:52]} Kf6 {[%emt 0:00:01][%csl Gh5][%cal Rd6d1]} 51. Rc8 {[%emt 0:00:59]} Rd1# {[%emt 0:00:09] Weighted Error Value: White=0.42/Black=0.14 (very precise)   Mistake:       	White=8     	Black=3      Inaccurate:     	White=4     	Black=4      OK:         	White=11    	Black=16     Best:        	White=2     	Black=2      Strong:       	---       	Black=1} 0-1

[Event "FIDE World School-ch O-15 2025"]
[Site "Vrnjacka Banja"]
[Date "2025.03.22"]
[Round "4.7"]
[White "Urangoo, Gurvanbaatar"]
[Black "Markovic, Kosta"]
[Result "1-0"]
[Annotator "NA RC"]
[ECO "B99"]
[WhiteElo "1982"]
[BlackElo "1903"]
[PlyCount "97"]
[EventDate "2025.03.19"]
[EventType "swiss"]
[EventCountry "SRB"]
[SourceTitle "playchess.com"]
[Source "ChessBase"]
[SourceQuality "1"]
[TimeControl "5400+30"]

1. e4 {[%emt 0:00:11]} c5 {[%emt 0:00:11]} 2. Nf3 {[%emt 0:00:15]} d6 {[%emt 0:00:09]} 3. d4 {[%emt 0:00:03]} cxd4 {[%emt 0:00:05]} 4. Nxd4 {[%emt 0:00:02]} Nf6 {[%emt 0:00:08]} 5. Nc3 {[%emt 0:00:02]} a6 {[%emt 0:00:05]} 6. Bg5 {[%emt 0:00:27]} e6 {[%emt 0:00:08]} 7. f4 {[%emt 0:00:03]} Be7 {[%emt 0:00:16]} 8. Qf3 {[%emt 0:00:05]} Nbd7 {[%emt 0:00:54]} 9. O-O-O {[%emt 0:00:10]} Qc7 {[%emt 0:00:11]} 10. Bd3 {[%emt 0:00:26]} b5 {[%emt 0:09:42]} 11. Rhe1 {[%emt 0:00:14]} Bb7 {[%emt 0:06:33]} 12. Qg3 {[%emt 0:00:05]} b4 {[%emt 0:05:48]} 13. Nd5 {[%emt 0:00:05]} exd5 {[%emt 0:19:27]} 14. exd5 {[%emt 0:00:27]} Kd8 {[%emt 0:03:17]} 15. Nc6+ {[%emt 0:00:08]} Bxc6 {[%emt 0:01:00]} 16. dxc6 {[%emt 0:00:01]} Qxc6 {[%emt 0:16:15]} 17. Bxf6 {[%emt 0:00:10]} Nxf6 {[%emt 0:11:17]} 18. Qxg7 {[%emt 0:01:09]} Rg8 {[%emt 0:00:41]} 19. Qxf7 {[%emt 0:00:17]} Qe8 {[%emt 0:05:31]} 20. Qb3 {[%emt 0:06:49]} a5 {[%emt 0:05:49]} 21. Bc4 {[%emt 0:06:33]} Rg7 {[%emt 0:01:15]} 22. g4 {[%emt 0:22:02]} Kc7 {[%emt 0:02:01]} 23. g5 {[%emt 0:01:56]} Nd7 {[%emt 0:00:06]} 24. Bd5 {[%emt 0:03:57]} Nc5 {[%emt 0:02:33]} 25. Qe3 {[%emt 0:02:47]} Rb8 {[%emt 0:00:27]} 26. h4 {[%emt 0:06:52]} Qg6 {[%emt 0:02:11]} 27. Qd4 {[%emt 0:01:53]} h5 {[%emt 0:01:00]} 28. f5 {[%emt 0:01:21]} Bxg5+ {[%emt 0:00:08]} 29. hxg5 {[%emt 0:00:34]} Qxg5+ {[%emt 0:00:05]} 30. Kb1 {[%emt 0:00:22]} Qg4 {[%emt 0:03:04]} 31. Be4 {[%emt 0:18:00]} Rd7 {[%emt 0:02:39]} 32. Qd5 {[%emt 0:00:50]} Rb6 {[%emt 0:01:55]} 33. f6 {[%emt 0:05:58]} Nxe4 {[%emt 0:00:50]} 34. Rxe4 {[%emt 0:00:30]} Qg6 {[%emt 0:00:42]} 35. Rf1 {[%emt 0:05:13]} Rf7 {[%emt 0:00:36]} 36. Rc4+ {[%emt 0:02:18]} Kb8 {[%emt 0:00:25]} 37. Qxa5 {[%emt 0:01:07]} Rbb7 {[%emt 0:00:01]} 38. Qd8+ {[%emt 0:00:40]} Ka7 {[%emt 0:00:12]} 39. Rc8 {[%emt 0:00:16]} Ka6 {[%emt 0:01:37]} 40. Qxd6+ {[%emt 0:01:22]} Rb6 {[%emt 0:00:09]} 41. Ra8+ {[%emt 0:00:27]} Ra7 {[%emt 0:00:16]} 42. Rxa7+ {[%emt 0:00:23]} Kxa7 {[%emt 0:00:00]} 43. Qxb6+ {[%emt 0:00:09]} Kxb6 {[%emt 0:00:08]} 44. f7 {[%emt 0:00:02]} b3 {[%emt 0:00:29]} 45. axb3 {[%emt 0:00:05]} Qd6 {[%emt 0:00:33]} 46. f8=Q {[%emt 0:00:07]} Qxf8 {[%emt 0:00:10]} 47. Rxf8 {[%emt 0:00:02]} h4 {[%emt 0:00:06]} 48. Rh8 {[%emt 0:00:06]} h3 {[%emt 0:00:04]} 49. Rxh3 {[%emt 0:00:07]} 1-0

[Event "FIDE World School-ch O-15 2025"]
[Site "Vrnjacka Banja"]
[Date "2025.03.22"]
[Round "4.8"]
[White "Blagoveshchenskiy, Roman"]
[Black "Cirkovic, Vuk"]
[Result "0-1"]
[Annotator "NA RC"]
[ECO "E97"]
[WhiteElo "1910"]
[BlackElo "1981"]
[PlyCount "116"]
[EventDate "2025.03.19"]
[EventType "swiss"]
[EventCountry "SRB"]
[SourceTitle "playchess.com"]
[Source "ChessBase"]
[SourceQuality "1"]
[TimeControl "5400+30"]

1. d4 {[%emt 0:00:08]} Nf6 {[%emt 0:00:32]} 2. c4 {[%emt 0:00:17]} g6 {[%emt 0:01:21]} 3. Nc3 {[%emt 0:00:10]} Bg7 {[%emt 0:00:57]} 4. e4 {[%emt 0:00:25]} d6 {[%emt 0:01:14]} 5. Nf3 {[%emt 0:00:34]} O-O {[%emt 0:00:45]} 6. Be2 {[%emt 0:00:05]} e5 {[%emt 0:01:25]} 7. O-O {[%emt 0:00:07]} Nc6 {[%emt 0:01:06]} 8. Be3 {[%emt 0:00:10]} Ng4 {[%emt 0:01:50]} 9. Bg5 {[%emt 0:00:08]} f6 {[%emt 0:00:49]} 10. Bh4 {[%emt 0:00:05]} g5 {[%emt 0:01:55]} 11. Bg3 {[%emt 0:00:15]} Nh6 {[%emt 0:01:26]} 12. dxe5 {[%emt 0:02:55]} fxe5 {[%emt 0:01:56]} 13. Nd5 {[%emt 0:03:38]} Be6 {[%emt 0:08:05]} 14. Rc1 {[%emt 0:05:41]} Nf7 {[%emt 0:05:07]} 15. c5 {[%emt 0:02:10]} h5 {[%emt 0:03:53]} 16. h4 {[%emt 0:00:22]} g4 {[%emt 0:00:59]} 17. Ng5 {[%emt 0:00:21]} Nxg5 {[%emt 0:11:48]} 18. hxg5 {[%emt 0:00:17]} Nd4 {[%emt 0:02:18]} 19. cxd6 {[%emt 0:04:11]} Bxd5 {[%emt 0:01:59]} 20. exd5 {[%emt 0:03:31]} cxd6 {[%emt 0:01:02]} 21. g6 {[%emt 0:01:14]} Qg5 {[%emt 0:01:58]} 22. Rc3 {[%emt 0:03:22]} Nf5 {[%emt 0:07:27]} 23. f4 {[%emt 0:03:50]} gxf3 {[%emt 0:03:13]} 24. Rfxf3 {[%emt 0:01:14]} e4 {[%emt 0:06:20]} 25. Bf4 {[%emt 0:00:12]} Qh4 {[%emt 0:02:41]} 26. g3 {[%emt 0:01:27]} Qh3 {[%emt 0:03:38]} 27. Rf2 {[%emt 0:01:25]} Bd4 {[%emt 0:04:55]} 28. Bf1 {[%emt 0:00:18]} Bxf2+ {[%emt 0:02:53]} 29. Kxf2 {[%emt 0:00:03]} Qh2+ {[%emt 0:06:32]} 30. Ke1 {[%emt 0:00:10]} Rac8 {[%emt 0:00:37]} 31. Qe2 {[%emt 0:01:30]} Qxe2+ {[%emt 0:06:38]} 32. Bxe2 {[%emt 0:00:10]} Rxc3 {[%emt 0:00:55]} 33. bxc3 {[%emt 0:00:02]} h4 {[%emt 0:01:05]} 34. gxh4 {[%emt 0:01:11]} Nxh4 {[%emt 0:03:22]} 35. Bxd6 {[%emt 0:01:23]} Ng2+ {[%emt 0:00:37]} 36. Kd2 {[%emt 0:00:58]} Rd8 {[%emt 0:00:08]} 37. Bf1 {[%emt 1:05:01]} Rxd6 {[%emt 0:01:36]} 38. Bxg2 {[%emt 0:00:00]} Rxd5+ {[%emt 0:00:04]} 39. Ke3 {[%emt 0:00:00]} Rd3+ {[%emt 0:02:50]} 40. Kxe4 {[%emt 0:00:00]} Rxc3 {[%emt 0:00:02]} 41. Ke5 {[%emt 0:00:00]} b6 {[%emt 0:01:14]} 42. Kf6 {[%emt 0:00:00]} Rd3 {[%emt 0:00:11]} 43. Be4 {[%emt 0:00:00]} Rd6+ {[%emt 0:00:26]} 44. Ke5 {[%emt 0:00:00]} Rd2 {[%emt 0:00:09]} 45. Kf6 {[%emt 0:00:00]} Rf2+ {[%emt 0:00:14]} 46. Ke5 {[%emt 0:00:00]} Kg7 {[%emt 0:00:10]} 47. a4 {[%emt 0:00:00]} Ra2 {[%emt 0:01:31]} 48. Bc6 {[%emt 0:00:00]} Rd2 {[%emt 0:00:04]} 49. Bd5 {[%emt 0:00:00]} Kxg6 {[%emt 0:00:06]} 50. Kd6 {[%emt 0:00:00]} Rd4 {[%emt 0:00:46]} 51. a5 {[%emt 0:00:00]} bxa5 {[%emt 0:00:26]} 52. Kc5 {[%emt 0:00:00]} Rb4 {[%emt 0:00:24]} 53. Bc6 {[%emt 0:00:00]} Kf6 {[%emt 0:00:23]} 54. Bb5 {[%emt 0:00:00]} Ke5 {[%emt 0:00:09]} 55. Bc6 {[%emt 0:00:00]} Kf4 {[%emt 0:00:12]} 56. Bb5 {[%emt 0:00:00]} Ke3 {[%emt 0:00:03]} 57. Bc6 {[%emt 0:00:00]} Kd3 {[%emt 0:00:07]} 58. Bb5+ {[%emt 0:00:00]} Kc3 {[%emt 0:00:03]} 0-1